[Event "*** SCC Grand Prix: Titled Tuesday Blitz"]
[Site "Chess.com"]
[Date "2020.07.21"]
[Round "10"]
[White "cassoulet"]
[Black "szachuspl"]
[Result "1-0"]
[WhiteElo "2655"]
[BlackElo "2555"]
[TimeControl "180+1"]
[EndTime "12:02:35 PDT"]
[Termination "cassoulet won by resignation"]

1. e4 {[%clk 0:03:00.9]} 1... c5 {[%clk 0:02:59.5]} 2. Nf3 {[%clk 0:03:00.3]}
2... e6 {[%clk 0:02:59.4]} 3. d4 {[%clk 0:03:00]} 3... cxd4 {[%clk 0:02:59.9]}
4. Nxd4 {[%clk 0:03:00.9]} 4... Nc6 {[%clk 0:02:59.3]} 5. Nc3 {[%clk 0:03:01.1]}
5... a6 {[%clk 0:02:59.7]} 6. Be3 {[%clk 0:03:01.3]} 6... Nf6 {[%clk 0:02:59.1]}
7. Bd3 {[%clk 0:03:01.8]} 7... d5 {[%clk 0:02:46.4]} 8. O-O {[%clk 0:02:45.5]}
8... Bb4 {[%clk 0:02:37.4]} 9. exd5 {[%clk 0:02:43]} 9... exd5 {[%clk
0:02:37.5]} 10. Nxc6 {[%clk 0:02:22.2]} 10... bxc6 {[%clk 0:02:37]} 11. Bd4
{[%clk 0:02:21.3]} 11... O-O {[%clk 0:02:35.8]} 12. Qf3 {[%clk 0:02:19.9]} 12...
Be6 {[%clk 0:02:33.4]} 13. h3 {[%clk 0:02:16.6]} 13... Bd6 {[%clk 0:02:31.8]}
14. Rfe1 {[%clk 0:02:15.2]} 14... a5 {[%clk 0:02:28.9]} 15. Na4 {[%clk
0:02:12.9]} 15... Nd7 {[%clk 0:02:22.3]} 16. Qh5 {[%clk 0:01:55.7]} 16... h6
{[%clk 0:02:15.9]} 17. Rxe6 {[%clk 0:00:58.8]} 17... fxe6 {[%clk 0:02:13.3]} 18.
Bxg7 {[%clk 0:00:58.2]} 18... Qg5 {[%clk 0:01:40]} 19. Qxg5 {[%clk 0:00:48.9]}
19... hxg5 {[%clk 0:01:40.9]} 20. Bxf8 {[%clk 0:00:49.4]} 20... Kxf8 {[%clk
0:01:40.8]} 21. Re1 {[%clk 0:00:48]} 21... Kf7 {[%clk 0:01:41.1]} 22. c4 {[%clk
0:00:47.9]} 22... Rb8 {[%clk 0:01:40.1]} 23. b3 {[%clk 0:00:47.8]} 23... Kf6
{[%clk 0:01:37.8]} 24. Be2 {[%clk 0:00:43]} 24... Bb4 {[%clk 0:01:31.7]} 25. Rd1
{[%clk 0:00:42.7]} 25... Ke5 {[%clk 0:01:26.6]} 26. Nb2 {[%clk 0:00:42.4]} 26...
Kd6 {[%clk 0:01:26.4]} 27. Nd3 {[%clk 0:00:42.2]} 27... Bc3 {[%clk 0:01:23.2]}
28. Bg4 {[%clk 0:00:37.7]} 28... Nf6 {[%clk 0:01:19.9]} 29. Bf3 {[%clk
0:00:35.8]} 29... e5 {[%clk 0:01:18.4]} 30. Nc1 {[%clk 0:00:28.9]} 30... e4
{[%clk 0:01:17.6]} 31. Bg4 {[%clk 0:00:27.7]} 31... a4 {[%clk 0:01:16.8]} 32.
Ne2 {[%clk 0:00:27.3]} 32... Be5 {[%clk 0:01:14.1]} 33. cxd5 {[%clk 0:00:27.4]}
33... cxd5 {[%clk 0:01:11.4]} 34. bxa4 {[%clk 0:00:27.3]} 34... Rb2 {[%clk
0:01:09.4]} 35. Kf1 {[%clk 0:00:19.7]} 35... Rxa2 {[%clk 0:01:08.1]} 36. Bf5
{[%clk 0:00:14.5]} 36... Rxa4 {[%clk 0:01:05.1]} 37. g3 {[%clk 0:00:15]} 37...
Ra2 {[%clk 0:01:00.9]} 38. h4 {[%clk 0:00:14.8]} 38... gxh4 {[%clk 0:01:00.6]}
39. gxh4 {[%clk 0:00:15.7]} 39... Ra8 {[%clk 0:00:48.6]} 40. Bg6 {[%clk
0:00:15.5]} 40... Ke6 {[%clk 0:00:39.5]} 41. Rb1 {[%clk 0:00:14.8]} 41... Rh8
{[%clk 0:00:26.3]} 42. Rb6+ {[%clk 0:00:15.2]} 42... Kd7 {[%clk 0:00:24.9]} 43.
h5 {[%clk 0:00:12.1]} 43... Nxh5 {[%clk 0:00:21.3]} 44. Bf5+ {[%clk 0:00:12.4]}
44... Kc7 {[%clk 0:00:21.3]} 45. Re6 {[%clk 0:00:12.9]} 45... Bb2 {[%clk
0:00:12.9]} 46. Rg6 {[%clk 0:00:10.2]} 46... Rf8 {[%clk 0:00:11.1]} 47. Bg4
{[%clk 0:00:09.7]} 47... Nf6 {[%clk 0:00:10.8]} 48. Nf4 {[%clk 0:00:09.9]} 48...
Nxg4 {[%clk 0:00:10.6]} 49. Ne6+ {[%clk 0:00:09.8]} 49... Kb7 {[%clk 0:00:09.7]}
50. Nxf8 {[%clk 0:00:10.7]} 50... Ne5 {[%clk 0:00:09.6]} 51. Re6 {[%clk
0:00:09.5]} 51... Kc7 {[%clk 0:00:08.2]} 52. Ng6 {[%clk 0:00:07.1]} 52... Nxg6
{[%clk 0:00:07]} 53. Rxg6 {[%clk 0:00:08]} 53... Be5 {[%clk 0:00:07]} 54. Ke2
{[%clk 0:00:07.7]} 54... Bf4 {[%clk 0:00:07.3]} 55. Rf6 {[%clk 0:00:07.1]} 55...
Be5 {[%clk 0:00:07.1]} 56. Rh6 {[%clk 0:00:07.1]} 56... Kd7 {[%clk 0:00:07.2]}
57. Ra6 {[%clk 0:00:07.5]} 57... Bd4 {[%clk 0:00:06.7]} 58. f3 {[%clk
0:00:07.6]} 58... exf3+ {[%clk 0:00:06.3]} 59. Kxf3 {[%clk 0:00:08.5]} 59... Be5
{[%clk 0:00:07.1]} 60. Ke3 {[%clk 0:00:08.8]} 60... Ke7 {[%clk 0:00:07.4]} 61.
Kd3 {[%clk 0:00:09.7]} 61... Kd7 {[%clk 0:00:07.8]} 62. Kc2 {[%clk 0:00:09.6]}
62... Kc7 {[%clk 0:00:08]} 63. Kb3 {[%clk 0:00:10.5]} 63... Bd6 {[%clk
0:00:07.8]} 64. Kc3 {[%clk 0:00:09.9]} 64... Bc5 {[%clk 0:00:07.4]} 65. Rg6
{[%clk 0:00:09.2]} 65... Kd7 {[%clk 0:00:07.1]} 66. Kd3 {[%clk 0:00:09.6]} 66...
Ke7 {[%clk 0:00:06.5]} 67. Ke2 {[%clk 0:00:10.1]} 67... Bd6 {[%clk 0:00:06.8]}
68. Kf3 {[%clk 0:00:10.3]} 68... Kd7 {[%clk 0:00:05.7]} 69. Kg4 {[%clk
0:00:10.6]} 69... Kc6 {[%clk 0:00:06]} 70. Kf5 {[%clk 0:00:11]} 70... Kc5 {[%clk
0:00:06.5]} 71. Rg8 {[%clk 0:00:10.8]} 71... d4 {[%clk 0:00:05.9]} 72. Ke4
{[%clk 0:00:10.2]} 72... Bc7 {[%clk 0:00:03.4]} 73. Rc8 {[%clk 0:00:10]} 73...
Kd6 {[%clk 0:00:02.7]} 74. Kxd4 {[%clk 0:00:10.9]} 74... Bb6+ {[%clk 0:00:03.3]}
75. Ke4 {[%clk 0:00:10.9]} 75... Bc7 {[%clk 0:00:02.4]} 76. Rg8 {[%clk
0:00:11.2]} 76... Ke6 {[%clk 0:00:02.8]} 77. Rg6+ {[%clk 0:00:11.5]} 77... Kf7
{[%clk 0:00:03.3]} 78. Kf5 {[%clk 0:00:11.8]} 78... Bd8 {[%clk 0:00:03.1]} 79.
Rc6 {[%clk 0:00:11.6]} 79... Ke7 {[%clk 0:00:03.4]} 80. Ke5 {[%clk 0:00:11.4]}
80... Kd7 {[%clk 0:00:04]} 81. Rd6+ {[%clk 0:00:11.1]} 81... Ke7 {[%clk
0:00:04.1]} 82. Ra6 {[%clk 0:00:09.8]} 82... Bc7+ {[%clk 0:00:04.3]} 83. Kd5
{[%clk 0:00:09.7]} 83... Bg3 {[%clk 0:00:04.3]} 84. Re6+ {[%clk 0:00:08.8]}
84... Kf7 {[%clk 0:00:04.3]} 85. Re3 {[%clk 0:00:08.7]} 85... Bc7 {[%clk
0:00:04.2]} 86. Rb3 {[%clk 0:00:08.4]} 86... Bh2 {[%clk 0:00:02.7]} 87. Rb2
{[%clk 0:00:08.2]} 87... Bg3 {[%clk 0:00:02.3]} 88. Ke4 {[%clk 0:00:06.7]} 88...
Ke6 {[%clk 0:00:02.2]} 89. Rb6+ {[%clk 0:00:06.1]} 89... Bd6 {[%clk 0:00:02.8]}
90. Ra6 {[%clk 0:00:05.9]} 90... Ke7 {[%clk 0:00:02.3]} 91. Kd5 {[%clk
0:00:06.8]} 91... Bf4 {[%clk 0:00:02.7]} 92. Ra7+ {[%clk 0:00:06]} 92... Kf6
{[%clk 0:00:02.8]} 93. Ra2 {[%clk 0:00:04.9]} 93... Kf5 {[%clk 0:00:02.7]} 94.
Rf2 {[%clk 0:00:05.2]} 94... Kg4 {[%clk 0:00:02.9]} 95. Ke4 {[%clk 0:00:05.8]}
95... Bg3 {[%clk 0:00:03.4]} 96. Rg2 {[%clk 0:00:06.2]} 96... Kh4 {[%clk
0:00:03.4]} 97. Kf3 {[%clk 0:00:06.6]} 97... Bd6 {[%clk 0:00:03.8]} 98. Rg4+
{[%clk 0:00:06.9]} 98... Kh5 {[%clk 0:00:03.9]} 99. Rg8 {[%clk 0:00:07.1]} 99...
Be5 {[%clk 0:00:03.4]} 100. Ke4 {[%clk 0:00:07.4]} 100... Bf6 {[%clk 0:00:03.2]}
101. Kf5 {[%clk 0:00:07.9]} 101... Bc3 {[%clk 0:00:03.3]} 102. Rg3 {[%clk
0:00:07.6]} 102... Be1 {[%clk 0:00:02.4]} 103. Rh3+ {[%clk 0:00:07.5]} 103...
Bh4 {[%clk 0:00:03]} 104. Rh2 {[%clk 0:00:07.9]} 104... Kh6 {[%clk 0:00:03.5]}
105. Rxh4+ {[%clk 0:00:08.8]} 105... Kg7 {[%clk 0:00:04.4]} 106. Rh5 {[%clk
0:00:09]} 1-0